fUST/lending_fUST_20250301
["ID","MTS","AMOUNT","RATE_DAILY","PERIOD"]
[354932738,1740831039415,-500.0,0.00031989,2]
[354932739,1740831039424,-500.0,0.00031989,2]
[354932740,1740831039433,-497.16,0.00031989,2]
[354932742,1740831039443,-1407.66,0.00031989,2]
[354932744,1740831039452,-804.94,0.00031989,2]
[354932745,1740831039461,-500.0,0.00031989,2]
[354932747,1740831039470,-500.0,0.00031989,2]
[354932748,1740831039480,-1314.34,0.00031989,2]
[354932750,1740831039489,-500.0,0.00031989,2]
[354932751,1740831039498,-500.0,0.00031989,2]
[354932753,1740831039508,-500.0,0.00031989,2]
[354932754,1740831039517,-500.0,0.00031989,2]
[354932756,1740831039526,-500.0,0.00031989,2]
[354932757,1740831039535,-1051.08,0.00031989,2]
[354932759,1740831039545,-500.0,0.00031989,2]
[354932760,1740831039554,-500.0,0.00031989,2]
[354932762,1740831039563,-500.0,0.00031989,2]
[354932764,1740831039573,-500.0,0.00031989,2]
[354932765,1740831039582,-500.0,0.00031989,2]
[354932767,1740831039591,-500.0,0.00031989,2]
[354932768,1740831039601,-500.0,0.00031989,2]
[354932770,1740831039610,-500.0,0.00031989,2]
[354932771,1740831039620,-500.0,0.00031989,2]
[354932773,1740831039629,-508.49,0.00031989,2]
[354932774,1740831039638,-500.0,0.00031989,2]
[354932776,1740831039647,-500.0,0.00031989,2]
[354932777,1740831039656,-500.0,0.00031989,2]
[354932779,1740831039665,-500.0,0.00031989,2]
[354932781,1740831039675,-500.0,0.00031989,2]
[354932782,1740831039685,-587.34,0.00031989,2]
[354932784,1740831039694,-500.0,0.00031989,2]
[354932785,1740831039703,-500.0,0.00031989,2]
[354932787,1740831039712,-500.0,0.00031989,2]
[354932788,1740831039721,-266.54341547,0.00031989,2]
[354932790,1740831039730,-1157.38,0.00031989,2]
[354932792,1740831039739,-510.43424536,0.00031989,2]
[354932795,1740831039755,-501.59,0.00031989,2]
[354932796,1740831039764,-500.0,0.00031989,2]
[354932798,1740831039774,-500.0,0.00031989,2]
[354932800,1740831039783,-500.0,0.00031989,2]
[354932802,1740831039793,-764.09,0.00031989,2]
[354932805,1740831039802,-500.0,0.00031989,2]
[354932808,1740831039811,-500.0,0.00031989,2]
[354932810,1740831039821,-1182.62,0.00031989,2]
[354932811,1740831039829,-500.0,0.00031989,2]
[354932812,1740831039838,-500.0,0.00031989,2]
[354932813,1740831039848,-500.0,0.00031989,2]
[354932814,1740831039857,-500.0,0.00031989,2]
[354932815,1740831039866,-1029.54,0.00031989,2]
[354932816,1740831039877,-566.04,0.00031989,2]
[354932817,1740831039886,-469.46315389,0.00031989,2]
[354932818,1740831039895,-614.75925659,0.00031989,2]
[354932819,1740831039905,-1000.0,0.00031989,2]
[354932820,1740831039914,-500.0,0.00031989,2]
[354932821,1740831039924,-910.59,0.00031989,2]
[354932823,1740831039933,-500.0,0.00031989,2]
[354932825,1740831039942,-500.0,0.00031989,2]
[354932827,1740831039951,-1012.57,0.00031989,2]
[354932829,1740831039960,-500.0,0.00031989,2]
[354932831,1740831039970,-410.346135,0.00031989,2]
[354932833,1740831039979,-500.0,0.00031989,2]
[354932835,1740831039988,-500.0,0.00031989,2]
[354932837,1740831039998,-504.6651435,0.00031989,2]
[354932838,1740831040007,-765.15,0.00031989,2]
[354932839,1740831040017,-500.0,0.00031989,2]
[354932840,1740831040027,-500.0,0.00031989,2]
[354932841,1740831040036,-500.0,0.00031989,2]
[354932842,1740831040045,-277.51506063,0.00031989,2]
[354932843,1740831040054,-500.0,0.00031989,2]
[354932844,1740831040063,-500.0,0.00031989,2]
[354932845,1740831040073,-500.0,0.00031989,2]
[354932846,1740831040082,-500.0,0.00031989,2]
[354932847,1740831040092,-500.0,0.00031989,2]
[354932848,1740831040101,-500.0,0.00031989,2]
[354932849,1740831040110,-406.61527626,0.00031989,2]
[354932850,1740831040119,-500.0,0.00031989,2]
[354932851,1740831040129,-500.0,0.00031989,2]
[354932852,1740831040138,-500.0,0.00031989,2]
[354932853,1740831040147,-500.0,0.00031989,2]
[354932854,1740831040156,-500.0,0.00031989,2]
[354932855,1740831040165,-503.38725626,0.00031989,2]
[354932857,1740831040175,-500.0,0.00031989,2]
[354932858,1740831040184,-500.0,0.00031989,2]
[354932859,1740831040193,-500.0,0.00031989,2]
[354932860,1740831040202,-655.1,0.00031989,2]
[354932862,1740831040212,-500.0,0.00031989,2]
[354932864,1740831040221,-568.56,0.00031989,2]
[354932866,1740831040231,-500.0,0.00031989,2]
[354932868,1740831040243,-500.0,0.00031989,2]
[354932870,1740831040252,-519.23,0.00031989,2]
[354932872,1740831040261,-500.0,0.00031989,2]
[354932874,1740831040271,-303.67041697,0.00031989,2]
[354932876,1740831040282,-647.35,0.00031989,2]
[354932878,1740831040292,-500.0,0.00031989,2]
[354932880,1740831040301,-542.55,0.00031989,2]
[354932882,1740831040311,-300.0,0.00031989,120]
[354932884,1740831040321,-500.0,0.00031989,2]
[354932886,1740831040330,-500.0,0.00031989,2]
[354932888,1740831040339,-517.12662447,0.00031989,2]
[354932890,1740831040348,-510.64557622,0.00031989,2]
[354932892,1740831040358,-500.0,0.00031989,2]
[354932894,1740831040368,-500.0,0.00031989,2]
[354932896,1740831040377,-517.36,0.00031989,2]
[354932898,1740831040387,-500.0,0.00031989,2]
[354932899,1740831040397,-500.0,0.00031989,2]
[354932901,1740831040407,-500.0,0.00031989,2]
[354932903,1740831040417,-505.00300925,0.00031989,2]
[354932905,1740831040427,-930.58,0.00031989,2]
[354932907,1740831040436,-500.0,0.00031989,2]
[354932909,1740831040445,-500.0,0.00031989,2]
[354932911,1740831040454,-500.0,0.00031989,2]
[354932913,1740831040463,-447.37599512,0.00031989,2]
[354932915,1740831040474,-500.0,0.00031989,2]
[354932917,1740831040483,-500.0,0.00031989,2]
[354932919,1740831040492,-500.0,0.00031989,2]
[354932921,1740831040502,-500.0,0.00031989,2]
[354932923,1740831040511,-508.74774967,0.00031989,2]
[354932925,1740831040521,-500.0,0.00031989,2]
[354932927,1740831040531,-829.58,0.00031989,2]
[354932929,1740831040541,-500.0,0.00031989,2]
[354932931,1740831040551,-500.0,0.00031989,2]
[354932934,1740831040561,-500.0,0.00031989,2]
[354932936,1740831040571,-500.0,0.00031989,2]
[354932937,1740831040580,-914.85,0.00031989,2]
[354932940,1740831040590,-500.0,0.00031989,2]
[354932941,1740831040599,-500.0,0.00031989,2]
[354932943,1740831040609,-224.66557078,0.00031989,2]
[354932945,1740831040618,-500.0,0.00031989,2]
[354932947,1740831040630,-509.27511864,0.00031989,2]
[354932950,1740831040639,-559.13,0.00031989,2]
[354932952,1740831040649,-500.0,0.00031989,2]
[354932954,1740831040658,-500.0,0.00031989,2]
[354932955,1740831040668,-500.0,0.00031989,2]
[354932957,1740831040678,-501.58502566,0.00031989,2]
[354932959,1740831040687,-500.0,0.00031989,2]
[354932961,1740831040697,-500.0,0.00031989,2]
[354932963,1740831040707,-500.0,0.00031989,2]
[354932965,1740831040716,-500.0,0.00031989,2]
[354932968,1740831040728,-500.0,0.00031989,2]
[354932969,1740831040737,-500.0,0.00031989,2]
[354932971,1740831040747,-500.0,0.00031989,2]
[354932973,1740831040755,-500.0,0.00031989,2]
[354932975,1740831040764,-500.0,0.00031989,2]
[354932977,1740831040774,-500.0,0.00031989,2]
[354932979,1740831040784,-500.0,0.00031989,2]
[354932981,1740831040793,-500.0,0.00031989,2]
[354932983,1740831040804,-527.64,0.00031989,2]
[354932985,1740831040813,-500.0,0.00031989,2]
[354932987,1740831040822,-500.0,0.00031989,2]
[354932989,1740831040832,-500.0,0.00031989,2]
[354932991,1740831040842,-902.6,0.00031989,2]
[354932993,1740831040851,-500.0,0.00031989,2]
[354932995,1740831040861,-444.73352121,0.00031989,2]
[354932997,1740831040871,-500.0,0.00031989,2]
[354932999,1740831040880,-500.0,0.00031999,2]
[354933001,1740831040889,-518.02578708,0.00031999,2]
[354933003,1740831040899,-500.0,0.00031999,2]
[354933005,1740831040909,-500.0,0.00031999,2]
[354933007,1740831040918,-500.0,0.00031999,2]
[354933009,1740831040929,-500.0,0.00031999,2]
[354933011,1740831040938,-500.0,0.00031999,2]
[354933013,1740831040947,-502.89216686,0.00031999,2]
[354933015,1740831040957,-500.0,0.00031999,2]
[354933017,1740831040966,-500.0,0.00031999,2]
[354933019,1740831040975,-500.0,0.00031999,2]
[354933021,1740831040985,-500.0,0.00031999,2]
[354933023,1740831040994,-500.0,0.00031999,2]
[354933025,1740831041004,-500.0,0.00031999,2]
[354933027,1740831041013,-500.0,0.00031999,2]
[354933029,1740831041023,-613.02843073,0.00031999,2]
[354933031,1740831041032,-500.0,0.00031999,2]
[354933033,1740831041041,-500.0,0.00031999,2]
[354933035,1740831041051,-500.0,0.00031999,2]
[354933037,1740831041060,-500.0,0.00031999,2]
[354933039,1740831041069,-500.0,0.00031999,2]
[354933041,1740831041078,-268.95781264,0.00031999,2]
[354933043,1740831041087,-500.0,0.00031999,2]
[354933045,1740831041097,-504.40130414,0.00031999,2]
[354933047,1740831041107,-500.0,0.00031999,2]
[354933049,1740831041116,-500.0,0.00031999,2]
[354933051,1740831041126,-500.0,0.00031999,2]
[354933053,1740831041135,-500.0,0.00031999,2]
[354933055,1740831041145,-500.0,0.00031999,2]
[354933057,1740831041155,-500.0,0.00031999,2]
[354933060,1740831041164,-500.0,0.00031999,2]
[354933061,1740831041175,-500.0,0.00031999,2]
[354933063,1740831041184,-500.0,0.00031999,2]
[354933065,1740831041193,-500.0,0.00031999,2]
[354933067,1740831041202,-500.0,0.00031999,2]
[354933069,1740831041211,-500.0,0.00031999,2]
[354933071,1740831041220,-500.31372051,0.00031999,2]
[354933073,1740831041229,-500.0,0.00031999,2]
[354933075,1740831041242,-500.0,0.00031999,2]
[354933077,1740831041252,-503.29367334,0.00031999,2]
[354933079,1740831041262,-500.0,0.00031999,14]
[354933081,1740831041271,-500.0,0.00031999,2]
[354933083,1740831041282,-500.0,0.00031999,2]
[354933085,1740831041291,-500.0,0.00031999,2]
[354933087,1740831041300,-501.46367803,0.00031999,2]
[354933089,1740831041311,-500.0,0.00031999,2]
[354933091,1740831041320,-403.26599901,0.00031999,2]
[354933093,1740831041330,-500.0,0.00031999,2]
[354933095,1740831041339,-500.01773891,0.00031999,2]
[354933097,1740831041349,-503.83221514,0.00031999,2]
[354933099,1740831041358,-500.0,0.00031999,2]
[354933101,1740831041367,-500.0,0.00031999,2]
[354933103,1740831041377,-500.0,0.00031999,2]
[354933105,1740831041387,-500.0,0.00031999,2]
[354933108,1740831041396,-500.0,0.00031999,2]
[354933110,1740831041406,-500.0,0.00031999,2]
[354933112,1740831041415,-500.0,0.00031999,2]
[354933114,1740831041425,-1297.03,0.00031999,2]
[354933115,1740831041435,-500.0,0.00031999,2]
[354933117,1740831041445,-1733.52,0.00031999,2]
[354933120,1740831041454,-188.34246364,0.00031999,2]
[354933122,1740831041464,-500.0,0.00031999,2]
[354933124,1740831041474,-5207.77,0.00031999,2]
[354933126,1740831041484,-510.39520217,0.00031999,2]
[354933128,1740831041494,-783.81,0.00031999,2]
[354933130,1740831041503,-760.5,0.00031999,2]
[354933132,1740831041513,-500.0,0.00031999,2]
[354933134,1740831041523,-500.0,0.00031999,2]
[354933136,1740831041532,-500.0,0.00031999,2]
[354933138,1740831041543,-652.6,0.00031999,2]
[354933140,1740831041553,-500.0,0.00031999,2]
[354933142,1740831041562,-500.0,0.00031999,2]
[354933144,1740831041572,-522.41,0.00031999,2]
[354933146,1740831041582,-500.0,0.00031999,2]
[354933148,1740831041591,-500.0,0.00031999,2]
[354933150,1740831041601,-500.0,0.00031999,2]
[354933152,1740831041611,-500.0,0.00031999,2]
[354933154,1740831041620,-500.0,0.00031999,2]
[354933156,1740831041630,-500.0,0.00031999,2]
[354933158,1740831041639,-500.0,0.00031999,2]
[354933160,1740831041649,-500.0,0.00031999,2]
[354933162,1740831041659,-500.0,0.00031999,2]
[354933164,1740831041668,-500.0,0.00031999,2]
[354933166,1740831041678,-1219.04,0.00031999,2]
[354933168,1740831041688,-1593.85,0.00031999,2]
[354933170,1740831041699,-672.14,0.00031999,2]
[354933172,1740831041708,-514.78,0.00031999,2]
[354933174,1740831041719,-1257.63,0.00031999,2]
[354933176,1740831041729,-500.0,0.00031999,2]
[354933178,1740831041739,-500.0,0.00031999,2]
[354933180,1740831041748,-500.0,0.00031999,2]
[354933182,1740831041759,-500.0,0.00031999,2]
[354933184,1740831041768,-6322.18236034,0.00032,30]
[354933186,1740831041778,-1000.0,0.00032,20]
[354933188,1740831041788,-1000.0,0.0003205,15]
[354933190,1740831041798,-1000.0,0.0003215,14]
[354933192,1740831041808,-500.0,0.00032161,2]
[354933194,1740831041817,-1781.89,0.00032161,2]
[354933196,1740831041827,-500.0,0.00032161,2]
[354933198,1740831041837,-1703.55,0.00032161,2]
[354933200,1740831041847,-500.0,0.00032161,2]
[354933202,1740831041857,-3599.46,0.00032161,2]
[354933204,1740831041867,-575.49,0.00032161,2]
[354933206,1740831041878,-540.02,0.00032161,2]
[354933209,1740831041889,-1253.33,0.00032161,2]
[354933211,1740831041899,-500.0,0.00032161,2]
[354933213,1740831041909,-500.0,0.00032161,2]
[354933215,1740831041919,-18989.47,0.00032161,2]
[354933217,1740831041929,-10954.41,0.00032161,2]
[354933219,1740831041939,-500.0,0.00032161,2]
[354933221,1740831041950,-5593.39,0.00032161,2]
[354933223,1740831041960,-1954.72,0.00032161,2]
[354933225,1740831041970,-3076.02,0.00032161,2]
[354933227,1740831041979,-500.0,0.00032161,2]
[354933229,1740831041989,-7955.01,0.00032161,2]
[354933231,1740831041998,-846.57,0.00032161,2]
[354933233,1740831042008,-1391.32,0.00032161,5]
[354933235,1740831042018,-500.0,0.00032161,2]
[354933237,1740831042027,-1357.25,0.00032161,2]
[354933239,1740831042037,-3023.44,0.00032161,2]
[354933241,1740831042047,-2662.01,0.00032161,2]
[354933243,1740831042057,-1377.2,0.00032161,2]
[354933245,1740831042067,-1063.52,0.00032161,2]
[354933247,1740831042077,-500.0,0.00032161,2]
[354933249,1740831042087,-6477.36,0.00032161,2]
[354933251,1740831042098,-581.87,0.00032161,2]
[354933254,1740831042108,-10257.06,0.00032161,2]
[354933256,1740831042117,-1271.51,0.00032161,2]
[354933258,1740831042128,-500.0,0.00032161,2]
[354933260,1740831042139,-500.0,0.00032162,2]
[354933262,1740831042149,-208.99,0.00032162,2]
[354933264,1740831042159,-275.79247018,0.00032162,2]
[354933266,1740831042168,-1057.67,0.00032162,2]
[354933268,1740831042179,-500.0,0.00032162,2]
[354933270,1740831042188,-500.0,0.00032162,2]
[354933272,1740831042198,-500.0,0.00032162,2]
[354933274,1740831042208,-500.0,0.00032162,2]
[354933276,1740831042218,-500.0,0.00032162,2]
[354933278,1740831042227,-500.0,0.00032162,2]
[354933280,1740831042240,-771.13,0.00032162,2]
[354933282,1740831042249,-500.0,0.00032162,2]
[354933284,1740831042259,-500.0,0.00032162,2]
[354933286,1740831042268,-500.0,0.00032162,2]
[354933288,1740831042279,-532.64,0.00032162,2]
[354933290,1740831042289,-500.0,0.00032162,2]
[354933292,1740831042298,-500.0,0.00032162,2]
[354933294,1740831042308,-500.0,0.00032162,2]
[354933296,1740831042319,-500.0,0.00032162,2]
[354933298,1740831042329,-1442.51,0.00032162,2]
[354933300,1740831042338,-437.48787654,0.00032162,2]
[354933302,1740831042348,-500.0,0.00032162,2]
[354933304,1740831042357,-504.23838916,0.00032162,2]
[354933306,1740831042367,-500.0,0.00032162,2]
[354933308,1740831042377,-500.0,0.00032162,2]
[354933310,1740831042387,-500.0,0.00032162,2]
[354933312,1740831042396,-500.0,0.00032162,2]
[354933314,1740831042406,-500.0,0.00032162,2]
[354933316,1740831042416,-1396.67,0.00032162,2]
[354933318,1740831042427,-500.0,0.00032162,2]
[354933320,1740831042437,-500.0,0.00032162,2]
[354933322,1740831042447,-500.0,0.00032162,2]
[354933324,1740831042457,-500.0,0.00032162,2]
[354933326,1740831042467,-1785.47,0.00032162,2]
[354933328,1740831042477,-500.0,0.00032162,2]
[354933330,1740831042487,-500.0,0.00032162,2]
[354933332,1740831042496,-500.0,0.00032162,2]
[354933334,1740831042506,-500.0,0.00032162,2]
[354933336,1740831042516,-500.0,0.00032162,2]
[354933338,1740831042526,-500.0,0.00032162,2]
[354933340,1740831042536,-1043.4,0.00032162,2]
[354933342,1740831042546,-500.0,0.00032162,2]
[354933344,1740831042555,-364.97873975,0.00032162,2]
[354933346,1740831042565,-500.0,0.00032162,2]
[354933348,1740831042575,-500.0,0.00032162,2]
[354933351,1740831042585,-795.75,0.00032162,2]
[354933353,1740831042595,-200.0,0.00032162,2]
[354933355,1740831042605,-677.68,0.00032162,2]
[354933357,1740831042614,-500.0,0.00032162,2]
[354933359,1740831042624,-500.0,0.00032162,2]
[354933361,1740831042633,-544.22,0.00032162,2]
[354933363,1740831042643,-500.0,0.00032162,2]
[354933365,1740831042653,-597.15,0.00032162,2]
[354933367,1740831042662,-703.79,0.00032162,2]
[354933369,1740831042671,-500.0,0.00032162,2]
[354933371,1740831042681,-500.0,0.00032162,2]
[354933373,1740831042690,-500.0,0.00032162,2]
[354933375,1740831042700,-1160.4,0.00032162,2]
[354933377,1740831042710,-654.12,0.00032162,2]
[354933379,1740831042720,-500.0,0.00032162,2]
[354933381,1740831042729,-500.0,0.00032162,2]
[354933383,1740831042740,-1095.26,0.00032162,2]
[354933385,1740831042749,-500.0,0.00032162,2]
[354933387,1740831042758,-500.0,0.00032162,2]
[354933389,1740831042768,-500.0,0.00032162,2]
[354933391,1740831042778,-1827.55,0.00032162,2]
[354933393,1740831042787,-922.76,0.00032162,2]
[354933395,1740831042797,-500.0,0.00032162,2]
[354933398,1740831042807,-690.63,0.00032162,2]
[354933401,1740831042817,-1449.73,0.00032162,2]
[354933403,1740831042826,-554.05,0.00032162,2]
[354933405,1740831042835,-500.0,0.00032162,2]
[354933407,1740831042844,-500.0,0.00032162,2]
[354933409,1740831042854,-500.0,0.00032162,2]
[354933411,1740831042863,-500.0,0.00032162,2]
[354933413,1740831042873,-500.0,0.00032162,2]
[354933415,1740831042883,-500.0,0.00032162,2]
[354933417,1740831042893,-500.0,0.00032162,2]
[354933419,1740831042902,-500.0,0.00032162,2]
[354933421,1740831042912,-500.0,0.00032162,2]
[354933423,1740831042922,-434.86727908,0.00032162,2]
[354933425,1740831042931,-500.0,0.00032162,2]
[354933427,1740831042941,-500.0,0.00032162,2]
[354933429,1740831042950,-500.0,0.00032162,2]
[354933431,1740831042960,-500.0,0.00032162,2]
[354933433,1740831042970,-617.44,0.00032162,2]
[354933436,1740831042980,-2850.9,0.00032162,2]
[354933439,1740831042989,-1148.24,0.00032162,2]
[354933442,1740831042999,-500.0,0.00032162,2]
[354933445,1740831043009,-500.0,0.00032162,2]
[354933448,1740831043019,-5448.4,0.00032162,2]
[354933451,1740831043028,-500.0,0.00032162,2]
[354933454,1740831043039,-500.0,0.00032162,2]
[354933457,1740831043048,-1947.7,0.00032162,2]
[354933460,1740831043058,-500.0,0.00032162,2]
[354933463,1740831043068,-1277.03,0.00032162,2]
[354933466,1740831043078,-500.0,0.00032162,2]
[354933468,1740831043088,-539.51551052,0.00032162,2]
[354933470,1740831043097,-500.0,0.00032162,2]
[354933472,1740831043107,-233.18462087,0.00032162,2]
[354933475,1740831043116,-776.89,0.00032162,2]
[354933478,1740831043127,-500.0,0.00032162,2]
[354933481,1740831043136,-500.0,0.00032162,2]
[354933483,1740831043146,-1250.59,0.00032162,2]
[354933485,1740831043156,-2725.26,0.00032162,2]
[354933487,1740831043166,-785.51,0.00032162,2]
[354933489,1740831043176,-500.0,0.00032162,2]
[354933491,1740831043186,-1617.53,0.00032162,2]
[354933493,1740831043197,-500.0,0.00032162,2]
[354933494,1740831043206,-500.0,0.00032162,2]
[354933495,1740831043216,-500.0,0.00032162,2]
[354933496,1740831043226,-1677.09,0.00032162,2]
[354933497,1740831043237,-1756.22,0.00032162,2]
[354933498,1740831043247,-500.0,0.00032162,2]
[354933499,1740831043257,-500.0,0.00032162,2]
[354933500,1740831043267,-500.0,0.00032162,2]
[354933501,1740831043278,-562.01,0.00032162,2]
[354933502,1740831043288,-627.91,0.00032162,2]
[354933503,1740831043297,-10020.04,0.00032162,2]
[354933504,1740831043309,-594.99,0.00032162,2]
[354933505,1740831043320,-500.0,0.00032162,2]
[354933506,1740831043329,-500.0,0.00032162,2]
[354933507,1740831043339,-500.0,0.00032162,2]
[354933508,1740831043349,-2088.19,0.00032162,2]
[354933509,1740831043359,-640.32252769,0.00032162,2]
[354933510,1740831043369,-175209.59,0.00032162,2]
[354933513,1740831043379,-500.0,0.00032162,2]
[354933514,1740831043389,-1314.12,0.00032162,2]
[354933515,1740831043399,-500.0,0.00032162,2]
[354933517,1740831043408,-2438.26,0.00032162,2]
[354933519,1740831043417,-1518.04,0.00032162,2]
[354933521,1740831043427,-617.17,0.00032162,2]
[354933523,1740831043437,-500.0,0.00032162,2]
[354933525,1740831043447,-694.5,0.00032162,2]
[354933527,1740831043457,-500.0,0.00032162,2]
[354933529,1740831043467,-3122.2,0.00032162,2]
[354933532,1740831043477,-956.8,0.00032162,2]
[354933534,1740831043488,-549.61,0.00032162,2]
[354933536,1740831043498,-1518.52,0.00032162,2]
[354933538,1740831043508,-1007.38,0.00032162,2]
[354933540,1740831043518,-500.0,0.00032162,2]
[354933542,1740831043528,-1687.47,0.00032162,2]
[354933544,1740831043538,-500.0,0.00032162,2]
[354933546,1740831043548,-500.0,0.00032162,2]
[354933548,1740831043558,-4300.86,0.00032162,2]
[354933550,1740831043567,-500.0,0.00032162,2]
[354933552,1740831043578,-605.91,0.00032162,2]
[354933554,1740831043588,-1279.34,0.00032162,2]
[354933556,1740831043598,-500.0,0.00032162,2]
[354933558,1740831043608,-500.0,0.00032162,2]
[354933589,1740831043886,-729.36,0.00032162,2]
[354933591,1740831043905,-520.39,0.00032162,2]
[354933594,1740831043916,-941.96,0.00032162,2]
[354933596,1740831043925,-977.03,0.00032162,2]
[354933598,1740831043935,-30483.96,0.00032162,2]
[354933600,1740831043944,-500.0,0.00032162,2]
[354933602,1740831043954,-678.54,0.00032162,2]
[354933604,1740831043964,-1429.39,0.00032162,2]
[354933606,1740831043973,-982.19,0.00032162,2]
[354933608,1740831043983,-1020.48,0.00032162,2]
[354933610,1740831043992,-500.0,0.00032162,2]
[354933611,1740831044002,-2335.17,0.00032162,2]
[354933613,1740831044011,-500.0,0.00032162,2]
[354933615,1740831044021,-782.26,0.00032162,2]
[354933617,1740831044031,-500.0,0.00032162,2]
[354933619,1740831044040,-167.5383512,0.00032162,2]
[354933621,1740831044049,-500.0,0.00032162,2]
[354933623,1740831044059,-563.30874079,0.00032162,2]
[354933625,1740831044070,-500.0,0.00032162,2]
[354933627,1740831044079,-500.0,0.00032162,2]
[354933629,1740831044088,-603.14,0.00032162,2]
[354933631,1740831044097,-1947.56,0.00032162,2]
[354933633,1740831044107,-500.0,0.00032162,2]
[354933635,1740831044117,-500.0,0.00032162,2]
[354933637,1740831044126,-500.0,0.00032162,2]
[354933639,1740831044135,-513.75,0.00032162,2]
[354933641,1740831044145,-510.06,0.00032162,2]
[354933644,1740831044155,-1171.09,0.00032162,2]
[354933646,1740831044164,-539.39,0.00032162,2]
[354933647,1740831044174,-507.58386937,0.00032162,2]
[354933649,1740831044183,-589.04271304,0.00032162,2]
[354933651,1740831044194,-733.24,0.00032162,2]
[354933654,1740831044204,-500.0,0.00032162,2]
[354933655,1740831044213,-500.0,0.00032162,2]
[354933657,1740831044222,-500.0,0.00032162,2]
[354933659,1740831044234,-501.49573493,0.00032173,5]
[354933662,1740831044243,-500.0,0.00032173,5]
[354933664,1740831044253,-500.0,0.00032173,5]
[354933665,1740831044263,-500.0,0.00032173,5]
[354933667,1740831044273,-500.0,0.00032173,5]
[354933669,1740831044283,-501.82626897,0.00032173,5]
[354933671,1740831044292,-163.75696149,0.00032173,5]
[354933673,1740831044302,-511.26437518,0.00032173,5]
[354933675,1740831044311,-160.0,0.00032173,2]
[354933677,1740831044321,-500.0,0.00032173,5]
[354933679,1740831044330,-500.0,0.00032173,5]
[354933681,1740831044340,-500.0,0.00032173,5]
[354933683,1740831044350,-500.0,0.00032173,5]
[354933685,1740831044359,-160.0,0.00032173,5]
[354933687,1740831044368,-501.75957197,0.00032173,2]
[354933689,1740831044378,-500.0,0.00032173,5]
[354933691,1740831044387,-162.65928204,0.00032173,5]
[354933693,1740831044396,-500.0,0.00032173,5]
[354933695,1740831044406,-500.0,0.00032173,5]
[354933697,1740831044415,-500.0,0.00032173,5]
[354933699,1740831044424,-500.0,0.00032173,5]
[354933701,1740831044434,-500.0,0.00032173,5]
[354933703,1740831044443,-500.0,0.00032173,5]
[354933705,1740831044453,-500.0,0.00032173,5]
[354933707,1740831044462,-500.0,0.00032173,5]
[354933709,1740831044471,-500.0,0.00032173,5]
[354933711,1740831044480,-500.0,0.00032173,5]
[354933713,1740831044490,-500.0,0.00032173,5]
[354933715,1740831044499,-367.80974713,0.00032173,5]
[354933717,1740831044509,-300.20962099,0.00032173,5]
[354933719,1740831044518,-150.99911135,0.00032173,5]
[354933721,1740831044528,-500.0,0.00032173,5]